lending/lending_fUSD_20250408
["ID","MTS","AMOUNT","RATE_DAILY","PERIOD"]
[357493873,1744087844369,-500.0,0.00038356,2]
[357493875,1744087844380,-497.77841735,0.00038356,2]
[357493877,1744087844389,-500.0,0.00038356,2]
[357493879,1744087844399,-500.0,0.00038356,2]
[357493881,1744087844408,-500.0,0.00038356,2]
[357493883,1744087844418,-500.0,0.00038356,2]
[357493885,1744087844427,-500.0,0.00038356,2]
[357493887,1744087844437,-500.0,0.00038356,2]
[357493889,1744087844446,-500.0,0.00038356,2]
[357493891,1744087844455,-500.0,0.00038356,2]
[357493893,1744087844465,-500.0,0.00038356,2]
[357493895,1744087844476,-530.01110864,0.00038356,2]
[357493897,1744087844485,-337.052461,0.00038356,2]
[357493899,1744087844495,-500.0,0.00038356,2]
[357493901,1744087844504,-500.0,0.00038356,2]
[357493903,1744087844514,-500.0,0.00038356,2]
[357493905,1744087844524,-507.36243663,0.00038356,2]
[357493907,1744087844533,-508.08539277,0.00038356,2]
[357493909,1744087844543,-500.0,0.00038356,2]
[357493911,1744087844553,-507.88437995,0.00038356,2]
[357493913,1744087844562,-506.10108603,0.00038356,2]
[357493915,1744087844572,-514.40971098,0.00038356,2]
[357493917,1744087844581,-500.0,0.00038356,2]
[357493919,1744087844591,-504.07107266,0.00038356,2]
[357493921,1744087844600,-544.46852427,0.00038356,2]
[357493923,1744087844610,-943.01,0.00038356,2]
[357493925,1744087844620,-500.0,0.00038356,2]
[357493927,1744087844630,-500.0,0.00038356,2]
[357493929,1744087844640,-500.0,0.00038356,2]
[357493931,1744087844649,-507.43259218,0.00038356,2]
[357493933,1744087844658,-500.0,0.00038356,2]
[357493935,1744087844668,-614.11,0.00038356,2]
[357493937,1744087844678,-500.0,0.00038356,2]
[357493939,1744087844688,-506.60337811,0.00038356,2]
[357493941,1744087844697,-510.9184787,0.00038356,2]
[357493943,1744087844707,-505.99260664,0.00038356,2]
[357493945,1744087844716,-500.0,0.00038356,2]
[357493947,1744087844726,-504.72198467,0.00038356,2]
[357493949,1744087844735,-500.0,0.00038356,2]
[357493951,1744087844745,-508.72659861,0.00038356,2]
[357493953,1744087844754,-500.0,0.00038356,2]
[357493955,1744087844763,-500.0,0.00038356,2]
[357493957,1744087844773,-500.0,0.00038356,2]
[357493959,1744087844783,-580.7,0.00038356,2]
[357493961,1744087844792,-500.0,0.00038356,2]
[357493963,1744087844801,-579.05,0.00038356,2]
[357493965,1744087844811,-506.44104812,0.00038356,2]
[357493967,1744087844820,-503.45859531,0.00038356,2]
[357493969,1744087844829,-516.15533813,0.00038356,2]
[357493971,1744087844838,-500.0,0.00038356,2]
[357493973,1744087844848,-500.0,0.00038356,2]
[357493975,1744087844857,-404.0644434,0.00038356,2]
[357493977,1744087844866,-500.0,0.00038356,2]
[357493979,1744087844875,-500.0,0.00038356,2]
[357493981,1744087844885,-500.0,0.00038356,2]
[357493983,1744087844895,-500.0,0.00038356,2]
[357493985,1744087844904,-500.0,0.00038356,2]
[357493987,1744087844913,-507.18295058,0.00038356,2]
[357493988,1744087844923,-501.751506,0.00038356,2]
[357493990,1744087844933,-510.74859342,0.00038356,2]
[357493992,1744087844942,-500.0,0.00038356,2]
[357493995,1744087844952,-779.86,0.00038356,2]
[357493996,1744087844961,-500.0,0.00038356,2]
[357493999,1744087844971,-521.5299826,0.00038356,2]
[357494001,1744087844980,-507.71292415,0.00038356,2]
[357494003,1744087844990,-500.0,0.00038356,2]
[357494005,1744087844999,-505.0804043,0.00038356,2]
[357494007,1744087845009,-151.0,0.00038356,7]
[357494009,1744087845019,-511.71239777,0.00038356,2]
[357494011,1744087845028,-500.0,0.00038356,2]
[357494013,1744087845038,-516.26094777,0.00038356,2]
[357494015,1744087845048,-500.0,0.00038356,2]
[357494017,1744087845057,-500.0,0.00038356,2]
[357494019,1744087845067,-500.0,0.00038356,2]
[357494021,1744087845076,-506.42133551,0.00038356,2]
[357494023,1744087845088,-510.68218869,0.00038356,2]
[357494025,1744087845098,-518.10832459,0.00038356,2]
[357494027,1744087845107,-505.76638778,0.00038356,2]
[357494029,1744087845116,-518.56191924,0.00038356,2]
[357494031,1744087845129,-500.0,0.00038356,2]
[357494033,1744087845138,-500.0,0.00038356,2]
[357494035,1744087845148,-500.0,0.00038356,2]
[357494037,1744087845159,-152.071432,0.00038356,7]
[357494039,1744087845168,-710.67,0.00038356,2]
[357494041,1744087845178,-507.09298252,0.00038356,2]
[357494043,1744087845187,-500.0,0.00038356,2]
[357494045,1744087845198,-504.08250871,0.00038356,2]
[357494047,1744087845207,-502.43649111,0.00038356,2]
[357494049,1744087845217,-500.0,0.00038356,2]
[357494051,1744087845226,-504.03163656,0.00038356,2]
[357494053,1744087845237,-510.90010372,0.00038356,2]
[357494055,1744087845247,-521.38345122,0.00038356,2]
[357494057,1744087845256,-645.2615997,0.00038356,2]
[357494059,1744087845266,-504.80434491,0.00038356,2]
[357494061,1744087845277,-504.35918884,0.00038356,2]
[357494063,1744087845287,-500.0,0.00038356,2]
[357494065,1744087845297,-500.0,0.00038356,2]
[357494066,1744087845307,-507.85108709,0.00038356,2]
[357494069,1744087845317,-510.43543719,0.00038356,2]
[357494071,1744087845328,-516.69424244,0.00038356,2]
[357494073,1744087845338,-500.0,0.00038356,2]
[357494075,1744087845348,-520.39513038,0.00038356,2]
[357494077,1744087845358,-500.0,0.00038356,2]
[357494078,1744087845367,-500.0,0.00038356,2]
[357494081,1744087845378,-517.3342258,0.00038356,2]
[357494083,1744087845388,-500.0,0.00038356,2]
[357494085,1744087845398,-500.0,0.00038356,2]
[357494087,1744087845407,-515.12550468,0.00038356,2]
[357494089,1744087845417,-490.20046296,0.00038356,2]
[357494091,1744087845427,-500.0,0.00038356,2]
[357494093,1744087845437,-525.51262394,0.00038356,2]
[357494095,1744087845446,-500.0,0.00038356,2]
[357494097,1744087845456,-154.44557546,0.00038356,2]
[357494099,1744087845465,-155.140349,0.00038356,7]
[357494101,1744087845475,-523.70903506,0.00038356,2]
[357494103,1744087845485,-503.86664728,0.00038356,2]
[357494105,1744087845494,-500.0,0.00038356,2]
[357494107,1744087845503,-503.99189763,0.00038356,2]
[357494109,1744087845512,-517.42332649,0.00038356,2]
[357494111,1744087845522,-501.43611271,0.00038356,2]
[357494113,1744087845531,-524.96280286,0.00038356,2]
[357494114,1744087845540,-500.0,0.00038356,2]
[357494115,1744087845550,-516.46569025,0.00038356,2]
[357494116,1744087845559,-5144.0930956,0.00038356,2]
[357494117,1744087845568,-513.52461413,0.00038356,2]
[357494118,1744087845577,-500.0,0.00038356,2]
[357494119,1744087845587,-506.02767674,0.00038356,2]
[357494120,1744087845596,-500.0,0.00038356,2]
[357494121,1744087845606,-518.56558542,0.00038356,2]
[357494122,1744087845615,-516.17860112,0.00038356,2]
[357494123,1744087845625,-500.0,0.00038356,2]
[357494124,1744087845635,-515.51074431,0.00038356,2]
[357494125,1744087845645,-538.07511453,0.00038356,2]
[357494126,1744087845654,-726.48,0.00038356,2]
[357494127,1744087845663,-516.83996806,0.00038356,2]
[357494128,1744087845673,-500.0,0.00038356,2]
[357494129,1744087845682,-500.0,0.00038356,2]
[357494131,1744087845691,-500.0,0.00038356,2]
[357494133,1744087845700,-500.0,0.00038356,2]
[357494135,1744087845709,-500.0,0.00038356,2]
[357494137,1744087845719,-1468.4,0.00038356,2]
[357494139,1744087845728,-503.71835087,0.00038356,2]
[357494141,1744087845738,-500.0,0.00038356,2]
[357494143,1744087845747,-500.0,0.00038356,2]
[357494145,1744087845757,-522.35926171,0.00038356,2]
[357494147,1744087845766,-528.82127855,0.00038356,2]
[357494149,1744087845775,-511.23506858,0.00038356,2]
[357494151,1744087845785,-500.0,0.00038356,2]
[357494153,1744087845796,-512.93615551,0.00038356,2]
[357494155,1744087845805,-515.43716892,0.00038356,2]
[357494157,1744087845815,-520.37899759,0.00038356,2]
[357494159,1744087845824,-513.71563747,0.00038356,2]
[357494162,1744087845834,-500.0,0.00038356,2]
[357494164,1744087845844,-500.0,0.00038356,2]
[357494166,1744087845853,-500.0,0.00038356,2]
[357494168,1744087845862,-521.13617548,0.00038356,2]
[357494170,1744087845871,-500.0,0.00038356,2]
[357494171,1744087845881,-513.05739546,0.00038356,2]
[357494174,1744087845891,-500.0,0.00038356,2]
[357494175,1744087845901,-524.15189142,0.00038356,2]
[357494189,1744087846017,-505.87964077,0.00038356,2]
[357494191,1744087846027,-565.97812567,0.00038356,2]
[357494193,1744087846037,-500.0,0.00038356,2]
[357494195,1744087846046,-535.48040144,0.00038356,2]
[357494197,1744087846056,-515.7430407,0.00038356,2]
[357494199,1744087846065,-526.33,0.00038356,2]
[357494201,1744087846075,-500.0,0.00038356,2]
[357494203,1744087846086,-510.92941792,0.00038356,2]
[357494205,1744087846097,-500.0,0.00038356,2]
[357494207,1744087846107,-525.68259654,0.00038356,2]
[357494209,1744087846116,-506.04256336,0.00038356,2]
[357494210,1744087846127,-500.0,0.00038356,2]
[357494212,1744087846137,-524.66312368,0.00038356,2]
[357494214,1744087846147,-588.86446916,0.00038356,2]
[357494216,1744087846156,-500.0,0.00038356,2]
[357494219,1744087846166,-569.98242799,0.00038356,2]
[357494220,1744087846175,-500.0,0.00038356,2]
[357494223,1744087846186,-500.0,0.00038356,2]
[357494225,1744087846195,-152.234074,0.00038356,7]
[357494227,1744087846205,-505.89794228,0.00038356,2]
[357494229,1744087846213,-500.0,0.00038356,2]
[357494231,1744087846223,-508.91136013,0.00038356,2]
[357494232,1744087846232,-500.0,0.00038356,2]
[357494234,1744087846241,-517.62882647,0.00038356,2]
[357494236,1744087846250,-500.0,0.00038356,2]
[357494238,1744087846261,-500.0,0.00038356,2]
[357494240,1744087846271,-500.0,0.00038356,2]
[357494242,1744087846280,-500.0,0.00038356,2]
[357494244,1744087846289,-500.0,0.00038356,2]
[357494246,1744087846298,-533.16684121,0.00038356,2]
[357494248,1744087846307,-542.53626872,0.00038356,2]
[357494250,1744087846317,-538.21694239,0.00038356,2]
[357494252,1744087846326,-500.0,0.00038356,2]
[357494254,1744087846336,-573.8247113,0.00038356,2]
[357494256,1744087846345,-500.0,0.00038356,2]
[357494258,1744087846355,-524.51852635,0.00038356,2]
[357494260,1744087846364,-500.0,0.00038356,2]
[357494262,1744087846374,-523.44287812,0.00038356,2]
[357494264,1744087846385,-509.13779708,0.00038356,2]
[357494266,1744087846395,-528.53156115,0.00038356,2]
[357494268,1744087846405,-525.28986462,0.00038356,2]
[357494270,1744087846414,-513.44011533,0.00038356,2]
[357494272,1744087846424,-528.57782897,0.00038356,2]
[357494274,1744087846434,-500.0,0.00038356,2]
[357494276,1744087846443,-500.0,0.00038356,2]
[357494278,1744087846453,-500.0,0.00038356,2]
[357494280,1744087846462,-500.0,0.00038356,2]
[357494282,1744087846472,-500.0,0.00038356,2]
[357494284,1744087846481,-500.0,0.00038356,2]
[357494286,1744087846491,-322.24316468,0.00038356,2]
[357494288,1744087846501,-500.0,0.00038356,2]
[357494290,1744087846511,-423.44430656,0.00038356,2]
[357494292,1744087846520,-500.0,0.00038356,2]
[357494294,1744087846530,-664.897806,0.00038356,7]
[357494296,1744087846539,-510.39749675,0.00038356,2]
[357494298,1744087846549,-500.0,0.00038356,2]
[357494300,1744087846559,-500.0,0.00038356,2]
[357494302,1744087846568,-676.93,0.00038356,2]
[357494304,1744087846578,-500.0,0.00038356,2]
[357494306,1744087846587,-664.897806,0.00038356,7]
[357494308,1744087846596,-519.78200168,0.00038356,2]
[357494310,1744087846606,-518.28945178,0.00038356,2]
[357494312,1744087846615,-512.29160116,0.00038356,2]
[357494314,1744087846624,-500.0,0.00038356,2]
[357494316,1744087846634,-500.0,0.00038356,2]
[357494318,1744087846643,-766.13,0.00038356,2]
[357494320,1744087846653,-500.0,0.00038356,2]
[357494322,1744087846662,-530.13734353,0.00038356,2]
[357494324,1744087846671,-500.0,0.00038356,2]
[357494326,1744087846680,-500.0,0.00038356,2]
[357494328,1744087846691,-500.0,0.00038356,2]
[357494330,1744087846700,-500.0,0.00038356,2]
[357494332,1744087846709,-510.43674096,0.00038356,2]
[357494334,1744087846718,-500.0,0.00038356,2]
[357494336,1744087846727,-529.45925569,0.00038356,2]
[357494338,1744087846737,-500.0,0.00038356,2]
[357494340,1744087846746,-500.0,0.00038356,2]
[357494342,1744087846756,-500.0,0.00038356,2]
[357494344,1744087846765,-517.35112482,0.00038356,2]
[357494346,1744087846774,-523.41567081,0.00038356,2]
[357494348,1744087846784,-1979.76,0.00038356,2]
[357494350,1744087846793,-500.0,0.00038356,2]
[357494352,1744087846803,-374.62640432,0.00038356,2]
[357494354,1744087846812,-500.0,0.00038356,2]
[357494356,1744087846821,-500.0,0.00038356,2]
[357494358,1744087846830,-500.0,0.00038356,2]
[357494360,1744087846840,-500.0,0.00038356,2]
[357494362,1744087846849,-177.18905373,0.00038356,2]
[357494364,1744087846859,-511.04949493,0.00038356,2]
[357494366,1744087846868,-757.61,0.00038356,2]
[357494368,1744087846878,-500.0,0.00038356,2]
[357494370,1744087846887,-500.0,0.00038356,2]
[357494372,1744087846896,-514.35989601,0.00038356,2]
[357494374,1744087846906,-1410.66,0.00038356,2]
[357494376,1744087846915,-524.02,0.00038356,2]
[357494378,1744087846924,-522.2668213,0.00038356,2]
[357494379,1744087846936,-508.84731208,0.00038356,2]
[357494381,1744087846946,-526.66,0.00038356,2]
[357494383,1744087846955,-514.66613894,0.00038356,2]
[357494385,1744087846964,-500.0,0.00038356,2]
[357494387,1744087846974,-628.99883297,0.00038356,2]
[357494389,1744087846983,-506.32406351,0.00038356,2]
[357494391,1744087846992,-511.8061086,0.00038356,2]
[357494393,1744087847002,-1263.05,0.00038356,2]
[357494395,1744087847011,-500.0,0.00038356,2]
[357494397,1744087847020,-500.0,0.00038356,2]
[357494399,1744087847030,-151.0,0.00038356,7]
[357494401,1744087847039,-509.82008874,0.00038356,2]
[357494403,1744087847048,-522.06,0.00038356,2]
[357494405,1744087847058,-500.0,0.00038356,2]
[357494407,1744087847067,-500.0,0.00038356,2]
[357494409,1744087847078,-500.0,0.00038356,2]
[357494411,1744087847090,-504.32510295,0.00038356,2]
[357494413,1744087847099,-510.0270029,0.00038356,2]
[357494415,1744087847109,-500.0,0.00038356,2]
[357494417,1744087847118,-516.7606819,0.00038356,2]
[357494419,1744087847129,-505.76690859,0.00038356,2]
[357494421,1744087847138,-500.0,0.00038356,2]
[357494423,1744087847148,-496.45307495,0.00038356,2]
[357494425,1744087847157,-509.35063624,0.00038356,2]
[357494427,1744087847169,-500.0,0.00038356,2]
[357494429,1744087847179,-500.0,0.00038356,2]
[357494431,1744087847188,-500.0,0.00038356,2]
[357494433,1744087847198,-500.0,0.00038356,2]
[357494435,1744087847208,-500.0,0.00038356,2]
[357494437,1744087847217,-500.0,0.00038356,2]
[357494439,1744087847227,-500.0,0.00038356,2]
[357494441,1744087847236,-500.0,0.00038356,2]
[357494443,1744087847245,-500.0,0.00038356,2]
[357494445,1744087847255,-510.18300163,0.00038356,2]
[357494447,1744087847264,-504.4846789,0.00038356,2]
[357494449,1744087847274,-500.0,0.00038356,2]
[357494451,1744087847283,-308.43778793,0.00038356,2]
[357494453,1744087847292,-500.0,0.00038356,2]
[357494455,1744087847301,-500.0,0.00038356,2]
[357494457,1744087847310,-500.0,0.00038356,2]
[357494459,1744087847320,-500.0,0.00038356,2]
[357494461,1744087847329,-1803.1,0.00038356,2]
[357494463,1744087847338,-511.99598148,0.00038356,2]
[357494465,1744087847348,-1416.56,0.00038356,2]
[357494466,1744087847357,-500.0,0.00038356,2]
[357494469,1744087847367,-500.0,0.00038356,2]
[357494470,1744087847377,-517.82571575,0.00038356,2]
[357494472,1744087847386,-500.0,0.00038356,2]
[357494474,1744087847395,-500.0,0.00038356,2]
[357494477,1744087847405,-500.0,0.00038356,2]
[357494479,1744087847414,-509.86810095,0.00038356,2]
[357494480,1744087847423,-500.0,0.00038356,2]
[357494482,1744087847432,-1090.2,0.00038356,2]
[357494485,1744087847443,-1031.59,0.00038356,2]
[357494487,1744087847452,-500.0,0.00038356,2]
[357494489,1744087847461,-502.45967634,0.00038356,2]
[357494491,1744087847471,-500.0,0.00038356,2]
[357494493,1744087847480,-509.40216817,0.00038356,2]
[357494495,1744087847489,-500.0,0.00038356,2]
[357494497,1744087847499,-502.39540087,0.00038356,2]
[357494499,1744087847509,-500.0,0.00038356,2]
[357494501,1744087847519,-500.0,0.00038356,2]
[357494503,1744087847529,-334.43553343,0.00038356,2]
[357494505,1744087847539,-657.31,0.00038356,2]
[357494507,1744087847549,-507.63676285,0.00038356,2]
[357494509,1744087847558,-500.0,0.00038356,2]
[357494511,1744087847568,-500.0,0.00038356,2]
[357494513,1744087847577,-500.0,0.00038356,2]
[357494515,1744087847586,-500.0,0.00038356,2]
[357494517,1744087847596,-500.0,0.00038356,2]
[357494519,1744087847604,-1011.57,0.00038356,2]
[357494521,1744087847614,-506.87190172,0.00038356,2]
[357494522,1744087847624,-773.16,0.00038356,2]
[357494524,1744087847633,-516.27993677,0.00038356,2]
[357494526,1744087847643,-500.0,0.00038356,2]
[357494528,1744087847653,-500.0,0.00038356,2]
[357494530,1744087847662,-527.38679265,0.00038356,2]
[357494532,1744087847672,-500.0,0.00038356,2]
[357494534,1744087847681,-500.0,0.00038356,2]
[357494536,1744087847690,-500.0,0.00038356,2]
[357494538,1744087847700,-500.0,0.00038356,2]
[357494540,1744087847710,-1172.92,0.00038356,2]
[357494542,1744087847719,-478.9889563,0.00038356,2]
[357494544,1744087847729,-509.67075375,0.00038356,2]
[357494546,1744087847738,-500.0,0.00038356,2]
[357494548,1744087847747,-500.0,0.00038356,2]
[357494550,1744087847757,-500.0,0.00038356,2]
[357494552,1744087847767,-500.0,0.00038356,2]
[357494554,1744087847776,-500.0,0.00038356,2]
[357494556,1744087847786,-509.20915288,0.00038356,2]
[357494558,1744087847795,-500.0,0.00038356,2]
[357494560,1744087847805,-227.97902103,0.00038356,2]
[357494562,1744087847815,-559.45,0.00038356,2]
[357494564,1744087847824,-500.0,0.00038356,2]
[357494566,1744087847833,-500.0,0.00038356,2]
[357494568,1744087847843,-512.19694888,0.00038356,2]
[357494570,1744087847853,-500.0,0.00038356,2]
[357494572,1744087847862,-500.0,0.00038356,2]
[357494574,1744087847872,-506.7604565,0.00038356,2]
[357494576,1744087847882,-507.39518296,0.00038356,2]
[357494579,1744087847893,-818.23,0.00038356,2]
[357494580,1744087847902,-609.89980825,0.00038356,2]
[357494582,1744087847912,-573.74,0.00038356,2]
[357494584,1744087847921,-500.0,0.00038356,2]
[357494587,1744087847942,-509.48924935,0.00038356,2]
[357494588,1744087847952,-500.0,0.00038356,2]
[357494590,1744087847962,-539.44224414,0.00038356,2]
[357494592,1744087847971,-679.46,0.00038356,2]
[357494595,1744087847981,-505.08079358,0.00038356,2]
[357494597,1744087847990,-500.0,0.00038356,2]
[357494599,1744087848000,-531.44,0.00038356,2]
[357494600,1744087848010,-500.0,0.00038356,2]
[357494602,1744087848020,-500.0,0.00038356,2]
[357494605,1744087848030,-500.0,0.00038356,2]
[357494606,1744087848040,-500.0,0.00038356,2]
[357494608,1744087848050,-785.9,0.00038356,2]
[357494611,1744087848061,-228.95,0.00038356,2]
[357494613,1744087848070,-500.0,0.00038356,2]
[357494614,1744087848080,-510.29804469,0.00038356,2]
[357494616,1744087848094,-605.09,0.00038356,2]
[357494619,1744087848103,-966.31,0.00038356,2]
[357494620,1744087848113,-506.66044164,0.00038356,2]
[357494623,1744087848124,-541.80305728,0.00038356,2]
[357494625,1744087848134,-512.51433767,0.00038356,2]
[357494627,1744087848144,-500.0,0.00038356,2]
[357494628,1744087848154,-518.44702607,0.00038356,2]
[357494631,1744087848164,-500.0,0.00038356,2]
[357494632,1744087848175,-500.0,0.00038356,2]
[357494635,1744087848185,-500.0,0.00038356,2]
[357494637,1744087848195,-500.0,0.00038356,2]
[357494638,1744087848204,-500.0,0.00038356,2]
[357494641,1744087848214,-500.0,0.00038356,2]
[357494643,1744087848226,-946.9,0.00038356,2]
[357494645,1744087848236,-294.27389283,0.00038356,2]
[357494647,1744087848245,-500.0,0.00038356,2]
[357494649,1744087848255,-732.99,0.00038356,2]
[357494651,1744087848265,-500.0,0.00038356,2]
[357494652,1744087848275,-514.61937844,0.00038356,2]
[357494654,1744087848285,-500.0,0.00038356,2]
[357494657,1744087848295,-500.0,0.00038356,2]
[357494659,1744087848306,-500.0,0.00038356,2]
[357494661,1744087848317,-506.8509702,0.00038356,2]
[357494663,1744087848327,-514.39237686,0.00038356,2]
[357494665,1744087848337,-52.09670016,0.00038356,2]
[357494698,1744087848825,-447.90329984,0.00038356,2]
[357494700,1744087848835,-500.0,0.00038356,2]
[357494702,1744087848845,-504.43928459,0.00038356,2]
[357494704,1744087848855,-515.09755003,0.00038356,2]
[357494706,1744087848864,-500.0,0.00038356,2]
[357494708,1744087848874,-86.11086554,0.00038356,2]
[357494797,1744087849825,-439.84539973,0.0002,2]
[357494914,1744087851114,-769.15460027,0.0002,2]
[357494916,1744087851125,-253.06834423,0.00022917,2]
[357494918,1744087851137,-420.48836126,0.00038356,2]
[357494920,1744087851147,-500.0,0.00038356,2]
[357494922,1744087851158,-500.0,0.00038356,2]
[357494924,1744087851168,-534.78908553,0.00038356,2]
[357494926,1744087851179,-500.0,0.00038356,2]
[357494928,1744087851189,-500.0,0.00038356,2]
[357494930,1744087851199,-510.57326715,0.00038356,2]
[357494932,1744087851210,-326.65359987,0.00038356,2]
[357494934,1744087851220,-500.0,0.00038356,2]
[357494936,1744087851231,-500.0,0.00038356,2]
[357494938,1744087851241,-500.0,0.00038356,2]
[357494940,1744087851252,-500.0,0.00038356,2]
[357494942,1744087851262,-506.94567837,0.00038356,2]
[357494944,1744087851272,-504.53237525,0.00038356,2]
[357494946,1744087851282,-500.0,0.00038356,2]
[357494949,1744087851292,-500.0,0.00038356,2]
[357494951,1744087851303,-500.0,0.00038356,2]
[357494953,1744087851313,-500.0,0.00038356,2]
[357494979,1744087851668,-532.88439736,0.00038356,2]
[357494980,1744087851679,-692.92,0.00038356,2]
[357494981,1744087851689,-500.0,0.00038356,2]
[357494982,1744087851699,-500.0,0.00038356,2]
[357494983,1744087851709,-523.59611256,0.00038356,2]
[357494984,1744087851719,-500.0,0.00038356,2]
[357494985,1744087851730,-503.54435382,0.00038356,2]
[357494986,1744087851740,-500.0,0.00038356,2]
[357494987,1744087851750,-515.81,0.00038356,2]
[357494988,1744087851760,-504.353138,0.00038356,2]
[357494989,1744087851770,-403.60143038,0.00038356,2]
[357494990,1744087851780,-630.23,0.00038356,2]
[357494991,1744087851790,-539.83586973,0.00038356,2]
[357494992,1744087851799,-517.033114,0.00038356,2]
[357494993,1744087851809,-507.91,0.00038356,2]
[357494994,1744087851819,-500.0,0.00038356,2]
[357494995,1744087851829,-500.0,0.00038356,2]
[357494996,1744087851839,-500.0,0.00038356,2]
[357494997,1744087851850,-518.9968177,0.00038356,2]
[357494998,1744087851860,-500.0,0.00038356,2]
[357494999,1744087851870,-510.10220693,0.00038356,2]
[357495000,1744087851881,-500.0,0.00038356,2]
[357495001,1744087851891,-506.22491407,0.00038356,2]
[357495002,1744087851901,-528.13154593,0.00038356,2]
[357495003,1744087851911,-811.32,0.00038356,2]
[357495004,1744087851921,-500.0,0.00038356,2]
[357495005,1744087851931,-500.0,0.00038356,2]
[357495006,1744087851941,-500.0,0.00038356,2]
[357495007,1744087851950,-500.0,0.00038356,2]
[357495009,1744087851960,-524.84581909,0.00038356,2]
[357495010,1744087851970,-500.0,0.00038356,2]
[357495011,1744087851980,-500.0,0.00038356,2]
[357495012,1744087851990,-500.0,0.00038356,2]
[357495013,1744087852000,-513.32999547,0.00038356,2]
[357495014,1744087852010,-500.0,0.00038356,2]
[357495015,1744087852023,-500.0,0.00038356,2]
[357495016,1744087852032,-500.0,0.00038356,2]
[357495017,1744087852042,-504.8672407,0.00038356,2]
[357495018,1744087852052,-239.72956776,0.00038356,2]
[357495019,1744087852062,-408.44411557,0.00038356,2]
[357495020,1744087852094,-91.55588443,0.00038356,2]
[357495021,1744087852104,-500.0,0.00038356,2]
[357495022,1744087852114,-240.63720057,0.00038356,2]
[357495023,1744087852127,-259.36279943,0.00038356,2]
[357495024,1744087852140,-500.0,0.00038356,2]
[357495025,1744087852150,-25.61870057,0.00038356,2]
[357495026,1744087852162,-491.8459714,0.00038356,2]
[357495027,1744087852174,-710.76,0.00038356,2]
[357495028,1744087852185,-211.5512766,0.00038356,2]
[357495029,1744087852197,-288.4487234,0.00038356,2]
[357495030,1744087852206,-256.7036716,0.00038356,2]
[357495031,1744087852220,-245.58396874,0.00038356,2]
[357495032,1744087852232,-500.0,0.00038356,2]
[357495033,1744087852242,-64.30573756,0.00038356,2]
[357495034,1744087852255,-435.69426244,0.00038356,2]
[357495035,1744087852266,-37.26473761,0.00038356,2]
[357495036,1744087852279,-472.74299828,0.00038356,2]
[357495037,1744087852290,-395.61100172,0.00038356,2]
[357495116,1744089031626,-178.9493,0.00019799,2]
[357495117,1744089031637,-436.90628201,0.000198,2]
[357495118,1744089031649,-1648.22776271,0.000198,2]
[357495119,1744089031661,-414.86595528,0.000198,2]
[357495120,1744089031672,-500.0,0.000199,2]
[357495121,1744089031683,-510.05431132,0.000199,2]
[357495122,1744089031695,-4168.56843775,0.000199,2]
[357495123,1744089031707,-2794.10775093,0.000199,2]
[357495124,1744089031717,-150.0,0.00021917,2]
[357495125,1744089031727,-266.81971216,0.00023,2]
[357495126,1744089031737,-150.0,0.00023287,2]
[357495127,1744089031747,-587.574,0.00023905,2]
[357495128,1744089031756,-1286.0,0.00023905,2]
[357495129,1744089031766,-955.641,0.00023905,2]
[357495130,1744089031776,-468.921,0.00023905,2]